[Event "GrandPrix_30.05"]
[Site "Chess.com"]
[Date "2020.05.30"]
[Round "3"]
[White "swisspower96"]
[Black "ftorodent"]
[Result "1-0"]
[WhiteElo "2367"]
[BlackElo "2119"]
[TimeControl "600+2"]
[EndTime "9:11:58 PDT"]
[Termination "swisspower96 won by resignation"]

1. d4 {[%clk 0:10:01.9]} 1... d5 {[%clk 0:09:59]} 2. c4 {[%clk 0:10:02.3]} 2...
e6 {[%clk 0:09:59.2]} 3. Nf3 {[%clk 0:10:02.2]} 3... Nf6 {[%clk 0:09:59.1]} 4.
g3 {[%clk 0:10:02.7]} 4... Be7 {[%clk 0:09:59]} 5. Bg2 {[%clk 0:10:03.4]} 5...
O-O {[%clk 0:09:59.6]} 6. O-O {[%clk 0:10:04.5]} 6... c6 {[%clk 0:10:00]} 7. Qc2
{[%clk 0:10:03.5]} 7... b6 {[%clk 0:09:59]} 8. Nbd2 {[%clk 0:10:04.4]} 8... Bb7
{[%clk 0:09:53.1]} 9. e4 {[%clk 0:10:05.3]} 9... Nbd7 {[%clk 0:09:52.1]} 10. e5
{[%clk 0:10:01.2]} 10... Ne8 {[%clk 0:09:53]} 11. cxd5 {[%clk 0:10:01.8]} 11...
cxd5 {[%clk 0:09:53.9]} 12. Re1 {[%clk 0:10:02.6]} 12... Rc8 {[%clk 0:09:41.7]}
13. Qd1 {[%clk 0:10:03.6]} 13... Qc7 {[%clk 0:09:33.1]} 14. Nb1 {[%clk
0:10:04.4]} 14... b5 {[%clk 0:09:15.9]} 15. Bf1 {[%clk 0:10:04.8]} 15... b4
{[%clk 0:09:06]} 16. Bd3 {[%clk 0:10:05.6]} 16... Qb6 {[%clk 0:08:22]} 17. Bg5
{[%clk 0:09:13.7]} 17... Qd8 {[%clk 0:07:39]} 18. h4 {[%clk 0:09:01.3]} 18...
Nc7 {[%clk 0:07:32.5]} 19. Nbd2 {[%clk 0:07:27.5]} 19... h6 {[%clk 0:07:01.6]}
20. Bxe7 {[%clk 0:07:18]} 20... Qxe7 {[%clk 0:07:02.5]} 21. Qa4 {[%clk 0:06:54]}
21... Ra8 {[%clk 0:06:18.6]} 22. Rac1 {[%clk 0:05:58.2]} 22... Rfc8 {[%clk
0:06:17.5]} 23. Qa5 {[%clk 0:05:51.5]} 23... Nb6 {[%clk 0:06:05.6]} 24. Rc5
{[%clk 0:05:31.9]} 24... Nc4 {[%clk 0:06:00.7]} 25. Qxb4 {[%clk 0:05:22]} 25...
Na6 {[%clk 0:06:00]} 26. Rxc8+ {[%clk 0:05:21.4]} 1-0

[Event "GrandPrix_30.05"]
[Site "Chess.com"]
[Date "2020.05.30"]
[Round "3"]
[White "dzhumagaliev"]
[Black "Margency"]
[Result "1-0"]
[WhiteElo "2174"]
[BlackElo "2159"]
[TimeControl "600+2"]
[EndTime "9:12:27 PDT"]
[Termination "dzhumagaliev won by resignation"]

1. Nf3 {[%clk 0:10:01.9]} 1... d5 {[%clk 0:09:59.9]} 2. h4 {[%clk 0:10:03.2]}
2... c5 {[%clk 0:09:58.4]} 3. h5 {[%clk 0:10:04.6]} 3... h6 {[%clk 0:09:59.2]}
4. c3 {[%clk 0:10:05.4]} 4... Nf6 {[%clk 0:09:58.1]} 5. d4 {[%clk 0:10:07.3]}
5... Bg4 {[%clk 0:09:52.8]} 6. Ne5 {[%clk 0:10:08.7]} 6... Bf5 {[%clk
0:09:45.2]} 7. Qb3 {[%clk 0:10:08.8]} 7... Qc7 {[%clk 0:09:38.1]} 8. Bf4 {[%clk
0:10:07.6]} 8... Qb6 {[%clk 0:09:15.7]} 9. dxc5 {[%clk 0:10:00.2]} 9... Qxb3
{[%clk 0:09:06.2]} 10. axb3 {[%clk 0:10:02.1]} 10... Nc6 {[%clk 0:08:50.3]} 11.
Nxc6 {[%clk 0:09:28.5]} 11... bxc6 {[%clk 0:08:49.6]} 12. b4 {[%clk 0:09:29.9]}
12... Nd7 {[%clk 0:08:41.9]} 13. Bc7 {[%clk 0:09:11.3]} 13... e5 {[%clk
0:08:28.2]} 14. Nd2 {[%clk 0:08:52.7]} 14... Be7 {[%clk 0:08:22.4]} 15. e4
{[%clk 0:08:49]} 15... dxe4 {[%clk 0:08:20.3]} 16. Ba6 {[%clk 0:08:49.8]} 16...
O-O {[%clk 0:07:39.7]} 17. Bb7 {[%clk 0:08:50.1]} 17... Rac8 {[%clk 0:07:36.7]}
18. Bxc8 {[%clk 0:08:49.6]} 18... Rxc8 {[%clk 0:07:38.6]} 19. Rxa7 {[%clk
0:08:48.2]} 19... Bg5 {[%clk 0:07:17.4]} 20. Nc4 {[%clk 0:08:44.8]} 20... Be6
{[%clk 0:07:05.7]} 21. Nb6 {[%clk 0:08:05.6]} 21... Re8 {[%clk 0:06:54.5]} 22.
Nxd7 {[%clk 0:08:05.8]} 22... Bxd7 {[%clk 0:06:55.4]} 23. Bxe5 {[%clk
0:08:06.7]} 23... Bg4 {[%clk 0:06:40]} 24. Bd4 {[%clk 0:08:03.5]} 24... Re6
{[%clk 0:06:29.6]} 25. c4 {[%clk 0:07:05.6]} 25... e3 {[%clk 0:06:16.4]} 26.
fxe3 {[%clk 0:06:49]} 26... Bxe3 {[%clk 0:06:15.3]} 27. Bxe3 {[%clk 0:06:44.5]}
27... Rxe3+ {[%clk 0:06:17.2]} 28. Kf2 {[%clk 0:06:39.4]} 28... Rb3 {[%clk
0:06:17.4]} 29. b5 {[%clk 0:06:38.7]} 29... cxb5 {[%clk 0:06:13.6]} 30. c6
{[%clk 0:06:35]} 30... bxc4 {[%clk 0:06:01.7]} 31. Rb7 {[%clk 0:06:17.8]} 31...
Rd3 {[%clk 0:05:43.5]} 32. Rb8+ {[%clk 0:06:18]} 32... Kh7 {[%clk 0:05:43.2]}
33. c7 {[%clk 0:06:19.2]} 33... c3 {[%clk 0:05:42.4]} 34. c8=Q {[%clk
0:06:07.2]} 34... Bxc8 {[%clk 0:05:42.6]} 35. Rxc8 {[%clk 0:06:09.1]} 35... cxb2
{[%clk 0:05:44.3]} 36. Rc2 {[%clk 0:05:58.3]} 36... Rb3 {[%clk 0:05:43]} 37. Rb1
{[%clk 0:05:58.6]} 37... Rb5 {[%clk 0:05:44.2]} 38. g4 {[%clk 0:05:59.3]} 1-0

[Event "GrandPrix_30.05"]
[Site "Chess.com"]
[Date "2020.05.30"]
[Round "3"]
[White "Kildepiotr"]
[Black "TheJoker64"]
[Result "0-1"]
[WhiteElo "2007"]
[BlackElo "2203"]
[TimeControl "600+2"]
[EndTime "9:12:51 PDT"]
[Termination "TheJoker64 won by resignation"]

1. Nf3 {[%clk 0:10:01.9]} 1... c5 {[%clk 0:10:00.1]} 2. g3 {[%clk 0:10:00.3]}
2... Nc6 {[%clk 0:09:58.5]} 3. Bg2 {[%clk 0:10:01.3]} 3... e5 {[%clk 0:09:59.5]}
4. O-O {[%clk 0:10:01.5]} 4... Nf6 {[%clk 0:10:00.1]} 5. d3 {[%clk 0:10:02.4]}
5... g6 {[%clk 0:09:57.2]} 6. e4 {[%clk 0:10:03.1]} 6... Bg7 {[%clk 0:09:58]} 7.
Nh4 {[%clk 0:09:57.8]} 7... O-O {[%clk 0:09:38.4]} 8. c3 {[%clk 0:09:57.6]} 8...
d5 {[%clk 0:09:32.1]} 9. Nd2 {[%clk 0:09:57.7]} 9... d4 {[%clk 0:09:16.3]} 10.
c4 {[%clk 0:09:50.6]} 10... a6 {[%clk 0:09:10.3]} 11. f4 {[%clk 0:09:48.7]}
11... exf4 {[%clk 0:08:49.2]} 12. gxf4 {[%clk 0:09:48.8]} 12... Ng4 {[%clk
0:08:49.2]} 13. Ndf3 {[%clk 0:09:45]} 13... Ne3 {[%clk 0:08:36.3]} 14. Bxe3
{[%clk 0:09:43.2]} 14... dxe3 {[%clk 0:08:38.2]} 15. Rb1 {[%clk 0:09:36.8]}
15... Nb4 {[%clk 0:08:32.9]} 16. Qe2 {[%clk 0:07:39.8]} 16... Qxd3 {[%clk
0:08:28.7]} 17. Rfe1 {[%clk 0:07:40.4]} 17... Qxe2 {[%clk 0:08:10.3]} 18. Rxe2
{[%clk 0:07:40.8]} 18... Nd3 {[%clk 0:08:11.8]} 19. f5 {[%clk 0:07:35.2]} 19...
Bh6 {[%clk 0:07:33.1]} 20. Bf1 {[%clk 0:07:25.8]} 20... Nf4 {[%clk 0:07:14.4]}
21. Ree1 {[%clk 0:07:25.8]} 21... Re8 {[%clk 0:06:48.8]} 22. fxg6 {[%clk
0:07:20.4]} 22... hxg6 {[%clk 0:06:48]} 23. e5 {[%clk 0:07:21.4]} 23... g5
{[%clk 0:06:21.6]} 24. Ng2 {[%clk 0:07:21.6]} 24... Nh3+ {[%clk 0:06:22.3]} 25.
Kh1 {[%clk 0:07:22.6]} 25... g4 {[%clk 0:06:20]} 26. Nxe3 {[%clk 0:06:48.6]}
26... gxf3 {[%clk 0:05:37.7]} 27. Nd5 {[%clk 0:06:47.2]} 27... Nf2+ {[%clk
0:05:28.6]} 28. Kg1 {[%clk 0:06:47.5]} 28... Ng4 {[%clk 0:05:30.3]} 29. Re4
{[%clk 0:06:42]} 29... f5 {[%clk 0:04:40.6]} 0-1

[Event "GrandPrix_30.05"]
[Site "Chess.com"]
[Date "2020.05.30"]
[Round "3"]
[White "SantoBlue"]
[Black "Karateloru"]
[Result "1-0"]
[WhiteElo "2496"]
[BlackElo "2175"]
[TimeControl "600+2"]
[EndTime "9:13:05 PDT"]
[Termination "SantoBlue won by resignation"]

1. Nf3 {[%clk 0:10:01.4]} 1... Nf6 {[%clk 0:09:59.8]} 2. g3 {[%clk 0:09:59.1]}
2... e6 {[%clk 0:09:57.5]} 3. Bg2 {[%clk 0:09:59.9]} 3... d5 {[%clk 0:09:57.9]}
4. O-O {[%clk 0:10:00.4]} 4... c5 {[%clk 0:09:56.6]} 5. c4 {[%clk 0:09:59.2]}
5... Nc6 {[%clk 0:09:57.2]} 6. cxd5 {[%clk 0:09:56.9]} 6... exd5 {[%clk
0:09:54]} 7. d4 {[%clk 0:09:57.4]} 7... Be6 {[%clk 0:09:53.3]} 8. Nc3 {[%clk
0:09:57.9]} 8... Be7 {[%clk 0:09:52.8]} 9. Bg5 {[%clk 0:09:38.1]} 9... cxd4
{[%clk 0:09:48.9]} 10. Nxd4 {[%clk 0:09:37.8]} 10... O-O {[%clk 0:09:49.1]} 11.
Nxe6 {[%clk 0:09:33.7]} 11... fxe6 {[%clk 0:09:49.3]} 12. e4 {[%clk 0:09:32.2]}
12... Nxe4 {[%clk 0:09:10.9]} 13. Nxe4 {[%clk 0:08:53.5]} 13... Bxg5 {[%clk
0:09:10.6]} 14. Nc5 {[%clk 0:08:54.5]} 14... Re8 {[%clk 0:08:21.8]} 15. Re1
{[%clk 0:08:47.6]} 15... Qb6 {[%clk 0:07:23.8]} 16. Nxe6 {[%clk 0:08:41.6]}
16... Bf6 {[%clk 0:07:24.2]} 17. Qxd5 {[%clk 0:08:36.3]} 17... Kh8 {[%clk
0:07:17.1]} 18. Qh5 {[%clk 0:07:37.2]} 18... Qa5 {[%clk 0:04:56.1]} 19. Qxa5
{[%clk 0:06:22.6]} 19... Nxa5 {[%clk 0:04:58]} 20. Nc7 {[%clk 0:06:20]} 20...
Rxe1+ {[%clk 0:04:57.2]} 21. Rxe1 {[%clk 0:06:21.9]} 21... Rc8 {[%clk
0:04:50.7]} 22. b4 {[%clk 0:06:00.2]} 22... Bc3 {[%clk 0:04:38.7]} 23. Re4
{[%clk 0:05:42.9]} 23... Bxb4 {[%clk 0:04:31.3]} 24. Bh3 {[%clk 0:05:43.4]} 1-0

[Event "GrandPrix_30.05"]
[Site "Chess.com"]
[Date "2020.05.30"]
[Round "3"]
[White "ninullia"]
[Black "matej2221"]
[Result "1-0"]
[WhiteElo "2309"]
[BlackElo "2095"]
[TimeControl "600+2"]
[EndTime "9:13:52 PDT"]
[Termination "ninullia won by resignation"]

1. d4 {[%clk 0:10:01.9]} 1... Nf6 {[%clk 0:09:58.5]} 2. c4 {[%clk 0:10:01]} 2...
e6 {[%clk 0:09:59.9]} 3. Nf3 {[%clk 0:10:00.3]} 3... b6 {[%clk 0:10:00.8]} 4. g3
{[%clk 0:10:00.7]} 4... Bb7 {[%clk 0:10:02.4]} 5. Bg2 {[%clk 0:10:01.1]} 5... d5
{[%clk 0:10:03.6]} 6. O-O {[%clk 0:10:00.3]} 6... Bd6 {[%clk 0:09:58.9]} 7. cxd5
{[%clk 0:09:50.4]} 7... exd5 {[%clk 0:09:59.6]} 8. Nc3 {[%clk 0:09:51.4]} 8...
O-O {[%clk 0:09:55.4]} 9. Ne5 {[%clk 0:09:48.2]} 9... Nbd7 {[%clk 0:09:51]} 10.
Bf4 {[%clk 0:09:14.5]} 10... Qe7 {[%clk 0:09:45.3]} 11. Nxd7 {[%clk 0:08:58.3]}
11... Qxd7 {[%clk 0:09:47.2]} 12. Bxd6 {[%clk 0:08:37.9]} 12... Qxd6 {[%clk
0:09:47]} 13. Rc1 {[%clk 0:08:39.3]} 13... a6 {[%clk 0:09:44.7]} 14. Qc2 {[%clk
0:08:35.1]} 14... Rfe8 {[%clk 0:09:42.4]} 15. e3 {[%clk 0:08:33.1]} 15... Re7
{[%clk 0:09:43.3]} 16. a3 {[%clk 0:08:23.8]} 16... Qe6 {[%clk 0:09:28.2]} 17.
Ne2 {[%clk 0:08:19.7]} 17... g5 {[%clk 0:09:10.4]} 18. Qb3 {[%clk 0:07:56]}
18... Rd8 {[%clk 0:08:59.1]} 19. Rc2 {[%clk 0:07:52.9]} 19... Ne8 {[%clk
0:08:40.9]} 20. Rfc1 {[%clk 0:07:47.3]} 20... Rdd7 {[%clk 0:08:39.5]} 21. a4
{[%clk 0:07:41.1]} 21... Nd6 {[%clk 0:08:37.7]} 22. Nc3 {[%clk 0:07:04.7]} 22...
Ne8 {[%clk 0:08:03.4]} 23. a5 {[%clk 0:07:00.4]} 23... b5 {[%clk 0:07:55.9]} 24.
Na2 {[%clk 0:06:20.3]} 24... Nd6 {[%clk 0:07:56]} 25. Nb4 {[%clk 0:06:20.3]}
25... Nc4 {[%clk 0:07:57]} 26. Qa2 {[%clk 0:05:58.3]} 26... c5 {[%clk
0:07:39.1]} 27. Nd3 {[%clk 0:05:44]} 27... cxd4 {[%clk 0:07:31.3]} 28. Nc5
{[%clk 0:05:42.8]} 28... Qf6 {[%clk 0:07:20.7]} 29. Nxd7 {[%clk 0:05:26.6]}
29... Rxd7 {[%clk 0:07:22.6]} 30. exd4 {[%clk 0:05:05.8]} 30... Qxd4 {[%clk
0:07:24.5]} 31. b3 {[%clk 0:05:00.9]} 31... Ne5 {[%clk 0:07:10.4]} 32. Qa1
{[%clk 0:04:46.8]} 32... Qxa1 {[%clk 0:06:52.3]} 33. Rxa1 {[%clk 0:04:48.7]}
33... Nc6 {[%clk 0:06:49.7]} 34. Rd2 {[%clk 0:04:24.2]} 34... Nb4 {[%clk
0:06:46.3]} 35. Rc1 {[%clk 0:04:11.2]} 35... Kf8 {[%clk 0:06:31.1]} 36. Rd4
{[%clk 0:04:01.1]} 36... Na2 {[%clk 0:06:19.9]} 37. Rc2 {[%clk 0:03:58.1]} 1-0

[Event "GrandPrix_30.05"]
[Site "Chess.com"]
[Date "2020.05.30"]
[Round "3"]
[White "viktorskliarov"]
[Black "ly4o"]
[Result "1-0"]
[WhiteElo "2232"]
[BlackElo "2027"]
[TimeControl "600+2"]
[EndTime "9:14:18 PDT"]
[Termination "viktorskliarov won by resignation"]

1. e4 {[%clk 0:09:58]} 1... c5 {[%clk 0:10:00.7]} 2. Nf3 {[%clk 0:09:58.6]} 2...
Nc6 {[%clk 0:10:01.7]} 3. Bb5 {[%clk 0:09:58.7]} 3... g6 {[%clk 0:10:02.6]} 4.
O-O {[%clk 0:09:59]} 4... Bg7 {[%clk 0:10:03.5]} 5. Re1 {[%clk 0:10:00.4]} 5...
e5 {[%clk 0:10:04.3]} 6. Bxc6 {[%clk 0:10:01.2]} 6... dxc6 {[%clk 0:10:04.9]} 7.
d3 {[%clk 0:10:01.9]} 7... Nh6 {[%clk 0:10:00.6]} 8. Be3 {[%clk 0:09:01.4]} 8...
b6 {[%clk 0:10:00.4]} 9. h3 {[%clk 0:09:00]} 9... f6 {[%clk 0:10:01.1]} 10. a3
{[%clk 0:09:00.7]} 10... O-O {[%clk 0:09:58.1]} 11. b4 {[%clk 0:08:59.6]} 11...
cxb4 {[%clk 0:10:00]} 12. axb4 {[%clk 0:09:00.8]} 12... Be6 {[%clk 0:09:57.6]}
13. Nc3 {[%clk 0:08:45]} 13... Qd6 {[%clk 0:09:56.9]} 14. Ra4 {[%clk 0:08:21.4]}
14... Nf7 {[%clk 0:09:53.4]} 15. Qa1 {[%clk 0:08:06.4]} 15... b5 {[%clk
0:09:54.1]} 16. Bc5 {[%clk 0:07:51.9]} 16... Qd7 {[%clk 0:09:43]} 17. Bxf8
{[%clk 0:07:38.6]} 17... bxa4 {[%clk 0:09:40.2]} 18. Bxg7 {[%clk 0:07:38.9]}
18... Kxg7 {[%clk 0:09:42.1]} 19. Nxa4 {[%clk 0:07:29.3]} 19... Qd6 {[%clk
0:09:40.9]} 20. Nc5 {[%clk 0:07:14.2]} 20... Bc8 {[%clk 0:09:41.2]} 21. Qa5
{[%clk 0:07:04.9]} 21... Nd8 {[%clk 0:09:41.6]} 22. Nd2 {[%clk 0:06:16.4]} 22...
Ne6 {[%clk 0:09:42]} 23. Nc4 {[%clk 0:05:36.4]} 23... Qe7 {[%clk 0:09:38.2]} 24.
Ra1 {[%clk 0:05:08.5]} 24... Nf4 {[%clk 0:09:33.2]} 25. Nb6 {[%clk 0:04:49.5]}
25... axb6 {[%clk 0:09:25.8]} 26. Qxa8 {[%clk 0:04:49.5]} 26... bxc5 {[%clk
0:09:26.8]} 27. Qxc8 {[%clk 0:04:03.6]} 27... cxb4 {[%clk 0:09:26.6]} 28. Qxc6
{[%clk 0:04:02.8]} 28... Kh6 {[%clk 0:09:27.7]} 29. Qb6 {[%clk 0:03:36.7]} 29...
Qf8 {[%clk 0:09:17.1]} 30. Ra7 {[%clk 0:03:21.4]} 30... Ne2+ {[%clk 0:08:55.3]}
31. Kh2 {[%clk 0:03:07.3]} 31... Nd4 {[%clk 0:08:57.2]} 32. Qc7 {[%clk
0:03:00.2]} 32... Qh8 {[%clk 0:08:55.9]} 33. Qb7 {[%clk 0:02:47.5]} 33... Nxc2
{[%clk 0:08:53.7]} 34. Ra2 {[%clk 0:01:50.6]} 34... Nd4 {[%clk 0:08:53.6]} 35.
Qxb4 {[%clk 0:01:50.9]} 35... Qc8 {[%clk 0:08:53.9]} 36. Qe7 {[%clk 0:01:34]}
36... Qh8 {[%clk 0:08:47.3]} 37. Ra6 {[%clk 0:01:29.1]} 37... Kg5 {[%clk
0:08:45]} 38. Rxf6 {[%clk 0:01:19.4]} 1-0

[Event "GrandPrix_30.05"]
[Site "Chess.com"]
[Date "2020.05.30"]
[Round "3"]
[White "kostasam18"]
[Black "Artur0208"]
[Result "1-0"]
[WhiteElo "2103"]
[BlackElo "2253"]
[TimeControl "600+2"]
[EndTime "9:14:19 PDT"]
[Termination "kostasam18 won by resignation"]

1. e4 {[%clk 0:10:00]} 1... e5 {[%clk 0:09:58]} 2. Nf3 {[%clk 0:09:59.8]} 2...
Nc6 {[%clk 0:09:57.7]} 3. Nc3 {[%clk 0:10:00]} 3... Nf6 {[%clk 0:09:57]} 4. d4
{[%clk 0:10:00.2]} 4... exd4 {[%clk 0:09:58.9]} 5. Nxd4 {[%clk 0:10:00.3]} 5...
Bb4 {[%clk 0:10:00.3]} 6. Nxc6 {[%clk 0:10:00.2]} 6... bxc6 {[%clk 0:10:02.2]}
7. Bd3 {[%clk 0:10:01.3]} 7... d5 {[%clk 0:10:03.5]} 8. exd5 {[%clk 0:09:59.9]}
8... O-O {[%clk 0:10:04.9]} 9. O-O {[%clk 0:09:58.9]} 9... cxd5 {[%clk
0:10:04.9]} 10. h3 {[%clk 0:09:58.1]} 10... c6 {[%clk 0:10:05.6]} 11. Qf3 {[%clk
0:09:57.7]} 11... Rb8 {[%clk 0:10:06.5]} 12. Bf4 {[%clk 0:09:55.8]} 12... Bd6
{[%clk 0:10:06.8]} 13. b3 {[%clk 0:09:54]} 13... Be6 {[%clk 0:10:06.2]} 14. Bxd6
{[%clk 0:09:25.9]} 14... Qxd6 {[%clk 0:10:08.1]} 15. Qg3 {[%clk 0:09:24.7]}
15... Qb4 {[%clk 0:10:00.1]} 16. Ne2 {[%clk 0:09:20.2]} 16... Rfe8 {[%clk
0:09:59.5]} 17. Nf4 {[%clk 0:09:16.8]} 17... Bd7 {[%clk 0:09:58.1]} 18. c3
{[%clk 0:09:01.3]} 18... Qd6 {[%clk 0:09:56.6]} 19. Nh5 {[%clk 0:08:37.7]} 19...
Qxg3 {[%clk 0:09:48.4]} 20. Nxf6+ {[%clk 0:08:27.2]} 20... gxf6 {[%clk
0:09:50.3]} 21. fxg3 {[%clk 0:08:26.6]} 21... Re3 {[%clk 0:09:52.1]} 22. Rf3
{[%clk 0:08:08.3]} 22... Rbe8 {[%clk 0:09:46.7]} 23. Kf2 {[%clk 0:08:02.1]}
23... Rxf3+ {[%clk 0:09:47.3]} 24. Kxf3 {[%clk 0:08:01]} 24... c5 {[%clk
0:09:48.2]} 25. b4 {[%clk 0:07:49.6]} 25... cxb4 {[%clk 0:09:48.3]} 26. cxb4
{[%clk 0:07:46.4]} 26... d4 {[%clk 0:09:49.7]} 27. Kf2 {[%clk 0:07:38.5]} 27...
Re3 {[%clk 0:09:49.9]} 28. Rd1 {[%clk 0:07:34.6]} 28... Be6 {[%clk 0:09:43.9]}
29. a3 {[%clk 0:07:23.9]} 29... h6 {[%clk 0:09:45.2]} 30. Rd2 {[%clk 0:07:11.6]}
30... Kf8 {[%clk 0:09:46.1]} 31. a4 {[%clk 0:07:03.9]} 31... Bd7 {[%clk
0:08:43.6]} 32. a5 {[%clk 0:06:48.1]} 32... Bc6 {[%clk 0:07:29.5]} 33. b5 {[%clk
0:06:40.2]} 33... Bd5 {[%clk 0:07:29.9]} 34. Be2 {[%clk 0:05:52]} 34... Re4
{[%clk 0:07:16.5]} 35. b6 {[%clk 0:05:08.9]} 35... axb6 {[%clk 0:07:18.4]} 36.
axb6 {[%clk 0:05:08.2]} 36... Bc6 {[%clk 0:07:18.5]} 37. Bf3 {[%clk 0:04:59.2]}
37... Re6 {[%clk 0:07:10.9]} 38. b7 {[%clk 0:04:57.6]} 38... Bxb7 {[%clk
0:07:12.1]} 39. Bxb7 {[%clk 0:04:56.4]} 39... Rb6 {[%clk 0:07:13.7]} 40. Be4
{[%clk 0:04:53.9]} 40... Rb4 {[%clk 0:07:13.3]} 41. Bd5 {[%clk 0:04:32.9]} 41...
Ke7 {[%clk 0:07:14]} 42. g4 {[%clk 0:04:24.9]} 42... Ra4 {[%clk 0:07:10.1]} 43.
Kf3 {[%clk 0:04:21.1]} 43... Kd6 {[%clk 0:07:03.6]} 44. Bxf7 {[%clk 0:04:18]}
44... Kc5 {[%clk 0:07:03.6]} 45. Ke4 {[%clk 0:04:15]} 45... Rb4 {[%clk
0:06:59.8]} 46. Rc2+ {[%clk 0:04:11.6]} 46... Kd6 {[%clk 0:07:00.5]} 47. Rc4
{[%clk 0:03:54.3]} 47... Rb7 {[%clk 0:06:59.2]} 48. Rxd4+ {[%clk 0:03:52.6]} 1-0

[Event "GrandPrix_30.05"]
[Site "Chess.com"]
[Date "2020.05.30"]
[Round "3"]
[White "am00ss00"]
[Black "Grebnev_A"]
[Result "0-1"]
[WhiteElo "2040"]
[BlackElo "2194"]
[TimeControl "600+2"]
[EndTime "9:14:34 PDT"]
[Termination "Grebnev_A won by resignation"]

1. e4 {[%clk 0:09:24.4]} 1... e6 {[%clk 0:09:59.5]} 2. d4 {[%clk 0:09:25.2]}
2... d5 {[%clk 0:10:01]} 3. exd5 {[%clk 0:09:26.5]} 3... exd5 {[%clk 0:10:02.9]}
4. Bd3 {[%clk 0:09:27.6]} 4... Nf6 {[%clk 0:10:02.4]} 5. h3 {[%clk 0:09:27.1]}
5... c5 {[%clk 0:10:02.8]} 6. c3 {[%clk 0:09:27.8]} 6... Nc6 {[%clk 0:10:03.4]}
7. Nf3 {[%clk 0:09:21.1]} 7... Bd6 {[%clk 0:10:00.9]} 8. dxc5 {[%clk 0:09:20.7]}
8... Bxc5 {[%clk 0:10:02.8]} 9. O-O {[%clk 0:09:21.6]} 9... O-O {[%clk
0:10:03.6]} 10. Bg5 {[%clk 0:09:22.2]} 10... h6 {[%clk 0:10:04.5]} 11. Bh4
{[%clk 0:09:22.9]} 11... g5 {[%clk 0:10:05.3]} 12. Nxg5 {[%clk 0:09:07.1]} 12...
hxg5 {[%clk 0:10:07.2]} 13. Bxg5 {[%clk 0:09:08.1]} 13... Be7 {[%clk 0:10:00]}
14. Bxf6 {[%clk 0:08:38.9]} 14... Bxf6 {[%clk 0:10:01.9]} 15. Qh5 {[%clk
0:08:39.2]} 15... Re8 {[%clk 0:09:57]} 16. Nd2 {[%clk 0:08:21.5]} 16... Be6
{[%clk 0:08:46.8]} 17. Rfe1 {[%clk 0:08:08.9]} 17... Bg7 {[%clk 0:08:27.4]} 18.
Nf3 {[%clk 0:07:58.2]} 18... Qf6 {[%clk 0:08:25.7]} 19. Re3 {[%clk 0:07:05.3]}
19... Qh6 {[%clk 0:08:19.3]} 20. Qxh6 {[%clk 0:06:35.9]} 20... Bxh6 {[%clk
0:08:21.2]} 21. Re2 {[%clk 0:06:37.1]} 21... Bd7 {[%clk 0:08:01.4]} 22. Rd1
{[%clk 0:06:22.3]} 22... Rxe2 {[%clk 0:07:27.3]} 23. Bxe2 {[%clk 0:06:24.2]}
23... Be6 {[%clk 0:07:28.3]} 24. g4 {[%clk 0:06:12.2]} 24... Rd8 {[%clk
0:07:25.7]} 25. Kg2 {[%clk 0:05:59.5]} 25... Bg7 {[%clk 0:07:24.2]} 26. Bb5
{[%clk 0:05:52]} 26... a6 {[%clk 0:07:19.1]} 27. Ba4 {[%clk 0:05:50.4]} 27... b5
{[%clk 0:06:56.2]} 28. Bc2 {[%clk 0:05:50.1]} 28... d4 {[%clk 0:06:49.3]} 29.
cxd4 {[%clk 0:05:01.2]} 29... Bxa2 {[%clk 0:06:23.6]} 30. Be4 {[%clk 0:04:14.5]}
30... Bd5 {[%clk 0:06:22.2]} 31. Bxd5 {[%clk 0:03:48.3]} 31... Rxd5 {[%clk
0:06:24.1]} 32. Rc1 {[%clk 0:03:32.6]} 32... Nxd4 {[%clk 0:06:18.7]} 33. Nh4
{[%clk 0:03:21.2]} 33... Bf6 {[%clk 0:06:08]} 34. Kg3 {[%clk 0:03:12.5]} 34...
Ne2+ {[%clk 0:06:07.1]} 0-1